bitfinex-derivatives/quotes_SOLF0:USTF0_20250312
["timestamp","ask_amount","ask_price","bid_price","bid_amount"]
[1741769164897,0.0612177,125.24,125.21,0.05227952]
[1741769167802,7.988,125.23,125.21,0.05227952]
[1741769168002,0.0612177,125.24,125.21,0.05227952]
[1741769168896,7.9879,125.23,125.21,0.05227952]
[1741769169098,0.0612177,125.24,125.21,0.05227952]
[1741769170104,8.0483177,125.24,125.21,0.05227952]
[1741769170293,0.0612177,125.24,125.21,0.05227952]
[1741769170801,0.0612177,125.24,125.21,8.04057952]
[1741769170997,0.0612177,125.24,125.21,0.05227952]
[1741769172304,0.0612177,125.24,125.23,7.9875]
[1741769172508,12.3746,125.31,125.22,26.77551958]
[1741769172897,7.9832,125.3,125.22,26.77551958]
[1741769173096,12.3746,125.31,125.22,26.77551958]
[1741769173506,7.984,125.29,125.22,26.77551958]
[1741769173706,0.05064241,125.28,125.25,0.05878192]
[1741769174108,0.05064241,125.28,125.27,7.9849]
[1741769174408,0.05064241,125.28,125.25,0.05878192]
[1741769176411,7.9853,125.27,125.25,0.05878192]
[1741769176701,0.05064241,125.28,125.25,0.05878192]
[1741769176912,0.05064241,125.28,125.21,7.9885]
[1741769177096,43.86,125.29,125.19,283.56]
[1741769177497,43.86,125.29,125.2,26.77551958]
[1741769177700,12.3746,125.31,125.2,26.77551958]
[1741769177910,12.3746,125.31,125.25,7.9862]
[1741769178103,0.06064713,125.27,125.24,0.0602737]
[1741769178407,7.9859,125.26,125.24,0.0580393]
[1741769178797,0.06064713,125.27,125.24,0.0580393]
[1741769179801,7.9862,125.25,125.24,0.0580393]
[1741769182009,7.9885,125.22,125.18,43.82]
[1741769182205,26.77551958,125.26,125.16,26.77551958]
[1741769182408,26.77551958,125.24,125.14,43.82]
[1741769182609,70.59551958,125.24,125.18,7.9906]
[1741769183109,43.82,125.24,125.18,7.9906]
[1741769183313,0.05300893,125.22,125.2,0.05602201]
[1741769183716,0.05300893,125.22,125.2,8.04512201]
[1741769183910,0.05300893,125.22,125.2,0.05602201]
[1741769184310,0.05300893,125.22,125.2,8.04482201]
[1741769184510,0.05300893,125.22,125.2,0.05602201]
[1741769184810,8.04150893,125.22,125.2,0.05602201]
[1741769185010,0.05300893,125.22,125.2,0.05602201]
[1741769185411,0.05300893,125.22,125.21,7.9888]
[1741769185615,0.05300893,125.22,125.2,0.05602201]
[1741769186714,0.05300893,125.22,125.21,7.9888]
[1741769187417,0.05300893,125.22,125.2,0.05602201]
[1741769187717,0.05300893,125.22,125.21,7.9888]
[1741769187917,0.05300893,125.22,125.2,0.05602201]
[1741769188516,7.9888,125.21,125.2,0.05602201]
[1741769188922,8.04150893,125.22,125.2,8.04532201]
[1741769189121,0.05300893,125.22,125.2,0.05602201]
[1741769189513,0.05300893,125.22,125.21,7.9888]
[1741769190115,0.05300893,125.22,125.2,8.04502201]
[1741769190315,0.05300893,125.22,125.2,0.05602201]
[1741769192527,0.05300893,125.22,125.21,7.9888]
[1741769193922,4.0176,125.27,125.25,7.9858]
[1741769194120,4.0176,125.27,125.23,43.76]
[1741769194326,4.0176,125.27,125.19,43.76]
[1741769194528,8.3352,125.26,125.21,7.9883]
[1741769194933,7.9876,125.23,125.21,7.9883]
[1741769195123,7.9876,125.23,125.22,0.05513426]
[1741769196025,0.05658321,125.24,125.22,0.05513426]
[1741769197225,0.05658321,125.24,125.23,7.9875]
[1741769197735,0.05658321,125.24,125.23,51.7275]
[1741769197922,0.05658321,125.24,125.23,43.74]
[1741769198524,8.04348321,125.24,125.23,43.74]
[1741769199035,8.04348321,125.24,125.22,0.05513426]
[1741769199436,0.05658321,125.24,125.22,8.04283426]
[1741769200029,8.04388321,125.24,125.22,0.05513426]
[1741769200633,8.04388321,125.24,125.22,8.04313426]
[1741769201138,0.05658321,125.24,125.23,7.9875]
[1741769202734,0.05658321,125.24,125.22,0.05513426]
[1741769203433,0.05658321,125.24,125.23,7.9875]
[1741769203634,0.05658321,125.24,125.22,0.05513426]
[1741769204935,0.05658321,125.24,125.23,7.9875]
[1741769205634,8.321e-05,125.24,125.23,7.9875]
[1741769206342,4.0825,125.29,125.24,26.77551958]
[1741769206541,4.0825,125.29,125.25,43.68]
[1741769206944,4.0825,125.29,125.27,7.9849]
[1741769207347,4.13888856,125.29,125.27,8.03815227]
[1741769208447,12.12278856,125.29,125.27,8.03815227]
[1741769208643,12.12278856,125.29,125.27,0.05325227]
[1741769208847,4.13888856,125.29,125.27,0.05325227]
[1741769209151,4.13888856,125.29,125.27,8.03775227]
[1741769209342,4.13888856,125.29,125.27,0.05325227]
[1741769209647,7.9843,125.28,125.27,0.05325227]
[1741769209849,4.13888856,125.29,125.25,43.68]
[1741769210048,4.13888856,125.29,125.25,51.6657]
[1741769210245,4.13888856,125.29,125.25,43.68]
[1741769210644,4.13888856,125.29,125.23,43.66]
[1741769210844,4.13888856,125.29,125.25,0.05680457]
[1741769211043,7.9852,125.27,125.25,0.05680457]
[1741769211349,4.13888856,125.29,125.25,0.05680457]
[1741769211845,4.13888856,125.29,125.27,7.9848]
[1741769212245,4.13888856,125.29,125.25,0.05680457]
[1741769212646,7.9848,125.28,125.25,0.05680457]
[1741769212845,7.9848,125.28,125.26,7.9852]
[1741769213649,4.13888856,125.29,125.26,7.9852]
[1741769213849,12.12288856,125.29,125.26,7.9852]
[1741769214449,7.9843,125.28,125.26,7.9852]
[1741769214651,4.13888856,125.29,125.26,7.9852]
[1741769214850,4.13888856,125.29,125.25,8.04270457]
[1741769215251,7.9844,125.28,125.25,8.04270457]
[1741769215445,4.13888856,125.29,125.25,0.05680457]
[1741769216849,7.9856,125.26,125.25,0.05680457]
[1741769218053,4.13888856,125.29,125.25,0.05680457]
[1741769218653,12.12268856,125.29,125.25,0.05680457]
[1741769219054,12.12268856,125.29,125.27,7.9846]
[1741769219449,0.05638856,125.29,125.25,16.78523649]
[1741769219653,0.05638856,125.29,125.28,7.9843]
[1741769221051,8.856e-05,125.29,125.28,7.9843]
[1741769221454,8.856e-05,125.29,125.27,51.5845]
[1741769221855,8.856e-05,125.29,125.27,43.6]
[1741769222049,8.856e-05,125.29,125.28,7.9843]
[1741769222451,8.856e-05,125.29,125.27,51.5845]
[1741769222645,8.856e-05,125.29,125.27,43.6]
[1741769223051,8.856e-05,125.29,125.27,51.5846]
[1741769223553,8.856e-05,125.29,125.28,7.9843]
[1741769227059,4.0092,125.34,125.28,7.9843]
[1741769227260,3.9178,125.35,125.3,16.72843192]
[1741769227857,3.9178,125.35,125.28,16.72843192]
[1741769228058,7.9811,125.33,125.28,16.72843192]
[1741769228354,0.05582065,125.33,125.3,0.05056172]
[1741769228856,0.05582065,125.33,125.32,7.9818]
[1741769229262,4.2555,125.36,125.31,60.26843192]
[1741769230162,12.2349,125.36,125.31,60.26843192]
[1741769230462,0.05198291,125.35,125.32,7.9814]
[1741769230672,0.05198291,125.35,125.31,60.26843192]
[1741769230963,0.05198291,125.35,125.33,16.72843192]
[1741769231357,0.05198291,125.35,125.34,7.9805]
[1741769231959,0.05198291,125.35,125.33,16.72843192]
[1741769232160,0.05198291,125.35,125.32,0.05789036]
[1741769232558,0.05198291,125.35,125.32,8.03929036]
[1741769233062,0.05198291,125.35,125.33,7.981]
[1741769233368,0.05198291,125.35,125.32,0.05789036]
[1741769233664,0.05198291,125.35,125.34,7.9805]
[1741769234859,6.16003803,125.39,125.38,7.9779]
[1741769234860,2.23023803,125.39,125.38,7.9779]
[1741769235163,0.2822,125.43,125.38,43.52]
[1741769235365,20.82844577,125.48,125.42,16.72843192]
[1741769235557,4.1282,125.48,125.44,16.72843192]
[1741769235960,8.0921,125.49,125.44,16.72843192]
[1741769236265,0.06090697,125.47,125.45,0.05782746]
[1741769236664,0.06090697,125.47,125.41,16.72843192]
[1741769236856,0.06090697,125.47,125.4,43.5]
[1741769237061,16.78933889,125.47,125.4,43.5]
[1741769237262,7.9745,125.44,125.4,43.5]
[1741769237458,60.22843192,125.47,125.37,60.22843192]
[1741769237663,43.5,125.47,125.39,16.72843192]
[1741769237863,0.05187406,125.43,125.41,0.05662711]
[1741769239471,4.2975,125.48,125.41,70.22929531]
[1741769239673,4.1305,125.49,125.44,26.6926682]
[1741769239866,4.1305,125.49,125.45,51.4534]
[1741769240472,4.1305,125.49,125.45,51.4533]
[1741769240670,0.05413784,125.48,125.46,0.05064298]
[1741769242472,7.9722,125.47,125.46,0.05064298]
[1741769242674,0.05413784,125.48,125.46,0.05064298]
[1741769243974,0.05413784,125.48,125.46,26.74331118]
[1741769245182,0.05413784,125.48,125.46,0.05064298]
[1741769245782,0.05413784,125.48,125.46,26.74331118]
[1741769246283,0.05413784,125.48,125.46,0.05064298]
[1741769246580,8.02583784,125.48,125.46,43.49064298]
[1741769246781,0.05413784,125.48,125.46,43.49064298]
[1741769246982,7.9722,125.47,125.46,43.49064298]
[1741769247383,0.05413784,125.48,125.41,239.26]
[1741769247580,26.6926682,125.49,125.4,43.42]
[1741769247780,4.0416,125.48,125.4,43.42]
[1741769247976,4.0416,125.48,125.4,70.1126682]
[1741769248282,4.0416,125.48,125.43,7.9743]
[1741769248478,4.0416,125.48,125.4,70.1126682]
[1741769248678,7.9745,125.44,125.4,70.1126682]
[1741769248874,4.22467198,125.47,125.43,0.06070438]
[1741769249078,4.166,125.47,125.43,0.06070438]
[1741769249382,7.9739,125.45,125.43,0.06070438]
[1741769250084,0.05666508,125.46,125.43,0.06070438]
[1741769250481,0.05666508,125.46,125.36,26.6926682]
[1741769250684,211.7903682,125.47,125.36,43.4]
[1741769250986,7.977,125.4,125.37,7.9782]
[1741769251183,26.6926682,125.45,125.34,265.9126682]
[1741769251389,26.6926682,125.45,125.36,43.4]
[1741769251583,0.0511407,125.41,125.38,0.056984]
[1741769251886,0.0511407,125.41,125.33,43.4]
[1741769252287,26.6926682,125.43,125.36,7.9786]
[1741769252685,7.9764,125.41,125.34,26.6926682]
[1741769252984,0.06071149,125.39,125.36,0.05429335]
[1741769253180,0.06071149,125.39,125.36,7.9789]
[1741769253380,0.06071149,125.39,125.36,0.05202573]
[1741769254385,7.9786,125.37,125.36,0.05202573]
[1741769254784,0.06071149,125.39,125.32,43.4]
[1741769255086,3.8787,125.39,125.28,265.8926682]
[1741769255287,7.9808,125.34,125.29,43.4]
[1741769255484,26.6926682,125.38,125.29,43.4]
[1741769255678,30.8800682,125.38,125.29,43.4]
[1741769255884,0.05885278,125.35,125.32,0.05356973]
[1741769256181,0.05885278,125.35,125.26,26.6926682]
[1741769256375,70.0926682,125.36,125.24,143.72305988]
[1741769256582,70.0926682,125.36,125.25,43.4]
[1741769256887,71.48169568,125.36,125.27,7.9845]
[1741769257089,26.6926682,125.34,125.24,143.72305988]
[1741769257387,7.9836,125.3,125.26,7.9852]
[1741769257580,0.05958518,125.3,125.28,0.05103547]
[1741769259787,0.05958518,125.3,125.29,7.9837]
[1741769260492,8.518e-05,125.3,125.29,7.9837]
[1741769260679,4.114,125.35,125.28,70.14370367]
[1741769260883,4.114,125.35,125.3,26.6926682]
[1741769261277,3.9158,125.39,125.3,26.6926682]
[1741769261482,12.1026,125.39,125.32,26.6926682]
[1741769261784,12.1026,125.39,125.33,43.4]
[1741769261984,0.05764888,125.37,125.34,0.05156266]
[1741769262787,8.03624888,125.37,125.34,0.05156266]
[1741769262984,0.05764888,125.37,125.34,0.05156266]
[1741769263184,0.05764888,125.37,125.28,26.6926682]
[1741769263387,26.6926682,125.38,125.31,7.982]
[1741769263587,26.6926682,125.38,125.29,43.4]
[1741769263787,70.0726682,125.38,125.29,43.4]
[1741769263989,26.6926682,125.34,125.25,43.38]
[1741769264190,7.9841,125.29,125.25,43.38]
[1741769264389,7.9841,125.29,125.28,0.05654485]
[1741769264782,0.05872373,125.3,125.21,160.41039168]
[1741769264985,30.5174682,125.32,125.22,26.6926682]
[1741769265180,3.8248,125.32,125.22,26.6926682]
[1741769265892,0.05382058,125.28,125.26,0.05738903]
[1741769266991,8.03862058,125.28,125.26,0.05738903]
[1741769267389,7.9849,125.27,125.26,0.05738903]
[1741769267590,0.05382058,125.28,125.26,0.05738903]
[1741769269492,0.05382058,125.28,125.26,8.04258903]
[1741769269997,0.05382058,125.28,125.27,7.9849]
[1741769271002,0.05382058,125.28,125.26,8.04268903]
[1741769271494,8.03812058,125.28,125.26,0.05738903]
[1741769271687,0.05382058,125.28,125.26,0.05738903]
[1741769271893,7.8245,125.37,125.27,70.0726682]
[1741769272090,7.8245,125.37,125.29,26.6926682]
[1741769272287,7.8245,125.37,125.31,26.6926682]
[1741769272491,7.8245,125.37,125.35,7.9793]
[1741769272791,7.8245,125.37,125.31,70.0526682]
[1741769272994,7.87544264,125.37,125.35,0.05640031]
[1741769273693,7.87544264,125.37,125.35,8.03600031]
[1741769273890,7.87544264,125.37,125.35,0.05640031]
[1741769274090,0.05094264,125.37,125.35,0.05640031]
[1741769274491,0.05094264,125.37,125.36,7.9792]
[1741769274687,0.05094264,125.37,125.36,34.6718682]
[1741769274896,4.264e-05,125.37,125.36,34.6718682]
[1741769275093,3.9119,125.42,125.41,7.976]
[1741769275495,3.9119,125.42,125.36,26.6926682]
[1741769275694,3.9119,125.42,125.37,7.978]
[1741769275896,3.9119,125.42,125.36,26.6926682]
[1741769276200,0.05367807,125.4,125.39,7.9772]
[1741769276595,0.05130591,125.41,125.38,26.74861036]
[1741769277007,0.05130591,125.41,125.4,7.9767]
[1741769277993,0.05130591,125.41,125.39,51.317]
[1741769278208,0.05130591,125.41,125.39,43.34]
[1741769278711,0.05130591,125.41,125.4,7.9767]
[1741769280903,3.9847,125.46,125.44,7.974]
[1741769281104,4.0539,125.48,125.4,26.6926682]
[1741769281312,7.9496,125.48,125.4,26.6926682]
[1741769281513,7.9496,125.48,125.4,7.9763]
[1741769282115,0.05620143,125.45,125.43,0.05215207]
[1741769283109,0.05620143,125.45,125.43,8.02685207]
[1741769283715,0.05620143,125.45,125.43,0.05215207]
[1741769284212,0.05620143,125.45,125.44,7.9741]
[1741769284613,0.05620143,125.45,125.43,43.35215207]
[1741769284814,0.05620143,125.45,125.44,7.9741]
[1741769285614,4.0944,125.5,125.46,7.9725]
[1741769285816,4.0944,125.5,125.45,26.6926682]
[1741769286016,12.065,125.5,125.45,26.6926682]
[1741769286313,4.0944,125.5,125.45,26.6926682]
[1741769286512,7.9686,125.53,125.45,26.6926682]
[1741769286707,7.9526,125.55,125.47,26.6926682]
[1741769286910,0.05969041,125.49,125.48,43.28]
[1741769287209,1.38689622,125.59,125.48,43.28]
[1741769287415,7.9666,125.63,125.55,26.6926682]
[1741769287713,7.9666,125.63,125.57,7.9654]
[1741769287714,11.9496,125.61,125.57,7.9654]
[1741769287917,3.9862,125.61,125.55,69.9726682]
[1741769288211,3.9862,125.61,125.55,43.28]
[1741769288522,0.05090661,125.59,125.57,0.05935723]
[1741769289712,8.01590661,125.59,125.57,0.05935723]
[1741769289911,0.05090661,125.59,125.57,0.05935723]
[1741769290117,0.05090661,125.59,125.52,43.26]
[1741769290313,7.9677,125.55,125.5,26.6926682]
[1741769290518,43.26,125.59,125.5,26.6926682]
[1741769290721,7.9665,125.56,125.5,26.6926682]
[1741769290920,43.26,125.59,125.5,26.6926682]
[1741769291414,0.05034137,125.56,125.53,0.05066624]
[1741769291612,8.01734137,125.56,125.53,0.05066624]
[1741769292823,7.9678,125.54,125.53,0.05066624]
[1741769294322,4.1544,125.55,125.48,43.22]
[1741769294623,4.1544,125.55,125.48,7.9715]
[1741769294825,7.9708,125.5,125.44,26.6926682]
[1741769295019,7.9708,125.5,125.44,69.8926682]
[1741769295316,7.9685,125.53,125.46,26.6926682]
[1741769295626,7.9685,125.53,125.46,26.74614259]
[1741769295821,0.05511789,125.51,125.49,7.9704]
[1741769296223,0.05511789,125.51,125.49,0.06003357]
[1741769297425,8.02481789,125.51,125.49,0.06003357]
[1741769297919,0.05511789,125.51,125.49,0.06003357]
[1741769298225,7.9703,125.5,125.49,0.06003357]
[1741769298613,8.02511789,125.51,125.49,0.06003357]
[1741769298819,0.05511789,125.51,125.49,0.06003357]
[1741769299221,0.05511789,125.51,125.5,7.9703]
[1741769299728,4.1544,125.55,125.5,26.6926682]
[1741769300322,3.9527,125.58,125.52,26.6926682]
[1741769301025,3.9527,125.58,125.56,7.9664]
[1741769301426,4.00647877,125.58,125.57,7.9659]
[1741769301624,0.05377877,125.58,125.57,7.9659]
[1741769301817,0.05377877,125.58,125.54,26.74942368]
[1741769302021,0.05377877,125.58,125.56,7.9664]
[1741769302631,0.05377877,125.58,125.57,7.9659]
[1741769302831,0.05377877,125.58,125.54,26.74942368]
[1741769303034,0.05377877,125.58,125.56,7.9662]
[1741769303229,0.05377877,125.58,125.54,0.05675548]
[1741769304131,7.9666,125.56,125.54,0.05675548]
[1741769304539,0.05377877,125.58,125.54,0.05675548]
[1741769304730,7.9664,125.57,125.54,8.02425548]
[1741769305123,0.05377877,125.58,125.54,8.02425548]
[1741769305329,0.05377877,125.58,125.54,0.05675548]
[1741769306029,7.9662,125.57,125.54,8.02445548]
[1741769306933,0.05377877,125.58,125.54,0.05675548]
[1741769307128,3.4294,125.57,125.54,0.05675548]
[1741769307328,7.0034,125.57,125.54,0.05675548]
[1741769308530,3.4294,125.57,125.54,0.05675548]
[1741769308736,0.05377877,125.58,125.54,26.74942368]
[1741769309235,0.05377877,125.58,125.57,7.9659]
[1741769309832,8.01937877,125.58,125.55,7.9668]
[1741769310133,0.05377877,125.58,125.54,26.74942368]
[1741769310325,0.05377877,125.58,125.57,7.9659]
[1741769310728,3.5154,125.63,125.57,26.6926682]
[1741769310929,11.4777,125.63,125.57,26.6926682]
[1741769311126,3.5154,125.63,125.57,26.6926682]
[1741769311327,3.5154,125.63,125.6,7.9638]
[1741769311527,3.5154,125.63,125.59,26.6926682]
[1741769311932,0.05147165,125.62,125.6,8.01505752]
[1741769312132,0.05147165,125.62,125.6,0.05145752]
[1741769312537,8.01437165,125.62,125.6,0.05145752]
[1741769312739,0.05147165,125.62,125.55,43.12]
[1741769312935,3.5154,125.63,125.57,26.6926682]
[1741769313130,3.5154,125.63,125.55,69.8126682]
[1741769313335,3.5154,125.63,125.55,43.12]
[1741769313738,7.9629,125.62,125.55,43.12]
[1741769313936,0.05508815,125.6,125.58,0.05687764]
[1741769315135,8.01918815,125.6,125.58,0.05687764]
[1741769315638,0.05508815,125.6,125.58,0.05687764]
[1741769315834,7.9646,125.59,125.58,0.05687764]
[1741769317138,0.05508815,125.6,125.58,0.05687764]
[1741769317439,0.05508815,125.6,125.59,7.9646]
[1741769317736,0.05508815,125.6,125.58,0.05687764]
[1741769318145,0.05508815,125.6,125.59,7.9646]
[1741769319639,0.05508815,125.6,125.58,0.05687764]
[1741769319845,0.05508815,125.6,125.58,8.02167764]
[1741769320045,0.05508815,125.6,125.58,0.05687764]
[1741769320439,0.05508815,125.6,125.59,7.9646]
[1741769321045,0.05508815,125.6,125.59,51.0446]
[1741769321742,180.9317,125.74,125.59,69.7726682]
[1741769322042,7.9599,125.67,125.62,26.6926682]
[1741769322242,3.4361,125.7,125.63,43.06]
[1741769322945,7.9599,125.67,125.65,0.05132503]
[1741769323136,0.05359337,125.68,125.65,0.05132503]
[1741769323949,8.01269337,125.68,125.65,0.05132503]
[1741769324244,0.05359337,125.68,125.65,0.05132503]
[1741769324645,0.05359337,125.68,125.67,7.9595]
[1741769325749,0.05359337,125.68,125.67,50.9995]
[1741769326137,0.05359337,125.68,125.66,7.96]
[1741769326740,0.05359337,125.68,125.65,0.05132503]
[1741769328651,0.05359337,125.68,125.67,7.9595]
[1741769331441,0.05359337,125.68,125.65,0.05132503]
[1741769331654,7.9602,125.66,125.65,0.05132503]
[1741769331948,7.0732,125.67,125.62,43.0]
[1741769332144,10.6389,125.67,125.61,7.9629]
[1741769332347,7.9615,125.64,125.61,7.9629]
[1741769332848,7.963,125.62,125.59,52.55688347]
[1741769333041,10.6389,125.67,125.61,0.05518618]
[1741769333042,0.06006046,125.64,125.61,0.05518618]
[1741769333240,8.02186046,125.64,125.61,8.01848618]
[1741769333443,26.6926682,125.62,125.56,31.83450498]
[1741769333648,3.5657,125.61,125.56,31.83450498]
[1741769334550,0.05628916,125.6,125.57,0.05378786]
[1741769334850,26.74895736,125.6,125.52,31.83450498]
[1741769335051,26.6926682,125.6,125.52,31.83450498]
[1741769335252,42.98,125.59,125.52,31.83450498]
[1741769335754,7.9684,125.53,125.52,31.83450498]
[1741769336252,0.05815993,125.57,125.51,84.89201328]
[1741769336253,26.74312629,125.54,125.51,84.94835327]
[1741769336449,7.969,125.52,125.51,6.45395825]
[1741769336751,26.74312629,125.54,125.5,127.33801992]
[1741769337146,26.74312629,125.54,125.44,3.5918]
[1741769337341,26.74312629,125.54,125.44,11.5659]
[1741769337549,26.6926682,125.54,125.44,30.2844682]
[1741769337753,0.05870632,125.5,125.48,0.05744089]
[1741769337954,43.0,125.55,125.48,0.05744089]
[1741769338147,0.05925149,125.5,125.48,0.05744089]
[1741769338348,43.0,125.55,125.48,0.05744089]
[1741769338841,0.05859085,125.53,125.48,0.05744089]
[1741769339048,0.05859085,125.53,125.48,43.03744089]
[1741769339649,0.05859085,125.53,125.48,69.73010909]
[1741769340146,0.05859085,125.53,125.5,7.97]
[1741769340349,0.05859085,125.53,125.48,69.73010909]
[1741769340548,0.05859085,125.53,125.51,7.9696]
[1741769340950,0.05859085,125.53,125.51,0.05743721]
[1741769341147,0.05859085,125.53,125.51,10.54163721]
[1741769341657,3.376,125.6,125.52,42.98]
[1741769342249,3.376,125.6,125.52,69.6726682]
[1741769342844,0.05152848,125.57,125.55,0.05412171]
[1741769343751,8.01772848,125.57,125.55,0.05412171]
[1741769344354,0.05152848,125.57,125.55,0.05412171]
[1741769344952,0.05152848,125.57,125.56,7.9665]
[1741769345257,71.03870823,125.65,125.56,7.9665]
[1741769345457,7.963,125.62,125.54,26.6926682]
[1741769345663,26.6926682,125.65,125.54,26.6926682]
[1741769345957,7.9611,125.65,125.6,7.9636]
[1741769346257,0.05535347,125.64,125.61,0.05481982]
[1741769346457,7.9627,125.62,125.61,0.05481982]
[1741769348056,0.05535347,125.64,125.61,0.05481982]
[1741769348854,0.05535347,125.64,125.61,8.01781982]
[1741769349161,0.05535347,125.64,125.61,0.05481982]
[1741769349356,0.05535347,125.64,125.63,7.9621]
[1741769349859,0.05535347,125.64,125.61,0.05481982]
[1741769350052,0.05535347,125.64,125.62,7.9623]
[1741769350249,0.05535347,125.64,125.61,0.05481982]
[1741769350654,0.05535347,125.64,125.62,7.9623]
[1741769350856,8.01695347,125.64,125.61,0.05481982]
[1741769351155,0.05535347,125.64,125.61,0.05481982]
[1741769351356,8.01705347,125.64,125.61,0.05481982]
[1741769351557,0.05535347,125.64,125.61,0.05481982]
[1741769351753,0.05535347,125.64,125.62,7.9626]
[1741769352156,0.05535347,125.64,125.61,0.05481982]
[1741769352357,0.05535347,125.64,125.61,8.01781982]
[1741769352557,7.9621,125.63,125.61,8.01781982]
[1741769352859,0.05535347,125.64,125.61,8.01781982]
[1741769353064,0.05535347,125.64,125.62,7.9621]
[1741769353266,0.05535347,125.64,125.61,0.05481982]
[1741769353563,0.05535347,125.64,125.62,7.9627]
[1741769353867,0.05535347,125.64,125.61,0.05481982]
[1741769354263,8.01695347,125.64,125.61,0.05481982]
[1741769354459,0.05535347,125.64,125.61,0.05481982]
[1741769354758,8.01705347,125.64,125.61,8.01781982]
[1741769355159,0.05535347,125.64,125.61,0.05481982]
[1741769355760,6.9457,125.72,125.61,26.74748802]
[1741769355967,49.8457,125.72,125.61,26.6926682]
[1741769356563,3.5627,125.73,125.63,26.6926682]
[1741769356869,3.5627,125.73,125.64,49.9215]
[1741769357066,0.06038395,125.69,125.68,7.9588]
[1741769357260,3.5627,125.73,125.67,0.05589952]
[1741769357463,0.05371299,125.7,125.68,7.9589]
[1741769357657,0.05371299,125.7,125.67,0.05589952]
[1741769358067,7.9589,125.68,125.67,0.05589952]
[1741769367174,7.9589,125.68,125.6,7.0215]
[1741769367175,42.84,125.68,125.6,7.0215]
[1741769367568,42.84,125.68,125.6,14.9851]
[1741769367772,42.84,125.68,125.6,7.0215]
[1741769368074,7.9649,125.59,125.56,10.5216]
[1741769368474,7.9649,125.59,125.56,10.58005647]
[1741769368773,0.05158535,125.59,125.56,0.05845647]
[1741769370473,0.05158535,125.59,125.56,8.02455647]
[1741769371075,7.9653,125.58,125.56,0.05845647]
[1741769371574,0.05158535,125.59,125.56,0.05845647]
[1741769372770,0.05158535,125.59,125.58,7.9652]
[1741769373174,0.05158535,125.59,125.56,0.05845647]
[1741769373877,0.05158535,125.59,125.58,7.9652]
[1741769374076,0.05158535,125.59,125.56,0.05845647]
[1741769375179,0.05158535,125.59,125.57,7.9655]
[1741769375369,0.05158535,125.59,125.56,0.05845647]
[1741769376178,0.05158535,125.59,125.57,7.9653]
[1741769376375,0.05158535,125.59,125.56,0.05845647]
[1741769376772,8.535e-05,125.59,125.58,7.9652]
[1741769376978,10.95500032,125.7,125.58,53.3853364]
[1741769377276,10.95500032,125.7,125.65,7.9604]
[1741769377277,7.9587,125.69,125.65,7.9604]
[1741769377477,7.9587,125.69,125.63,69.4926682]
[1741769377674,10.95500032,125.7,125.64,2.473]
[1741769377980,0.05520405,125.68,125.66,0.05372352]
[1741769378179,0.05520405,125.68,125.66,2.73292352]
[1741769378378,43.8200013,125.71,125.66,2.73292352]
[1741769379281,28.39740391,125.72,125.69,26.6926682]
[1741769379681,28.45208616,125.72,125.69,26.75359886]
[1741769380175,28.45208616,125.72,125.69,34.71169886]
[1741769380383,28.45208616,125.72,125.69,26.75359886]
[1741769380582,17.68148616,125.72,125.69,26.75359886]
[1741769381086,17.68148616,125.72,125.69,88.75359886]
[1741769381285,17.68148616,125.72,125.69,96.71139886]
[1741769381485,0.05468225,125.72,125.69,88.75359886]
[1741769381884,0.05468225,125.72,125.69,96.71119886]
[1741769382286,0.05468225,125.72,125.69,88.75359886]
[1741769382491,0.05468225,125.72,125.7,7.957]
[1741769382785,0.05468225,125.72,125.69,88.75359886]
[1741769382989,0.05468225,125.72,125.7,7.9572]
[1741769383185,0.05468225,125.72,125.69,88.75359886]
[1741769383483,0.05468225,125.72,125.71,26.6926682]
[1741769383685,4.9733,125.8,125.71,71.8326682]
[1741769383885,352.37556774,125.83,125.75,26.6926682]
[1741769384088,352.37556774,125.83,125.77,7.9528]
[1741769384089,7.9505,125.82,125.77,7.9528]
[1741769384389,354.94086774,125.83,125.75,69.4526682]
[1741769384690,354.94086774,125.83,125.75,42.76]
[1741769384889,0.05512136,125.8,125.78,0.05368878]
[1741769385687,8.00682136,125.8,125.78,0.05368878]
[1741769385889,0.05512136,125.8,125.78,0.05368878]
[1741769387003,8.00682136,125.8,125.78,0.05368878]
[1741769387290,0.05512136,125.8,125.78,0.05368878]
[1741769387689,7.9519,125.79,125.78,0.05368878]
[1741769388389,0.05512136,125.8,125.78,0.05368878]
[1741769388994,7.9519,125.79,125.78,0.05368878]
[1741769389590,7.9519,125.79,125.71,239.2575]